bitfinex-derivatives/quotes_BNBF0:USTF0_20250507
["timestamp","ask_amount","ask_price","bid_price","bid_amount"]
[1746640495272,1.26452322,599.13,597.79,3.24056565]
[1746640495564,1.26452322,599.12,597.79,3.24056565]
[1746640495770,1.26452322,599.11,597.79,3.24056565]
[1746640495970,1.26452322,599.1,597.79,3.24056565]
[1746640496270,1.26452322,599.09,597.79,3.24056565]
[1746640496466,1.2644958,599.08,597.79,3.24056565]
[1746640496662,0.29069525,599.22,597.79,3.24056565]
[1746640496867,1.264505,599.21,597.79,3.24056565]
[1746640497070,1.2644958,599.2,597.79,3.24056565]
[1746640497271,0.29069525,599.22,597.79,3.24056565]
[1746640497570,1.26417932,599.21,597.79,3.24056565]
[1746640497871,1.26417932,599.2,597.79,3.24056565]
[1746640498072,1.2641487,599.19,597.79,3.24056565]
[1746640498275,0.29069525,599.22,597.79,3.24056565]
[1746640498566,1.26415586,599.21,597.79,3.24056565]
[1746640498765,1.26415586,599.2,597.79,3.24056565]
[1746640498968,1.26412034,599.19,597.79,3.24056565]
[1746640499169,0.29069525,599.22,597.79,3.24056565]
[1746640499370,0.33374495,599.26,597.79,3.24056565]
[1746640499572,1.26409266,599.25,597.79,3.24056565]
[1746640499768,1.26408468,599.24,597.79,3.24056565]
[1746640499972,1.26408468,599.23,597.79,3.24056565]
[1746640500168,1.26408468,599.22,597.79,3.24056565]
[1746640500372,1.26408468,599.21,597.79,3.24056565]
[1746640500572,1.26409853,599.2,597.79,3.24056565]
[1746640500770,1.26409853,599.19,597.79,3.24056565]
[1746640500969,1.2642918,599.18,597.79,3.24056565]
[1746640501174,1.26442807,599.17,597.79,3.24056565]
[1746640501367,0.33374495,599.26,597.79,3.24056565]
[1746640504171,0.30687722,599.25,597.79,3.24056565]
[1746640505775,0.29072439,599.24,597.79,3.24056565]
[1746640506177,0.30687722,599.23,597.79,3.24056565]
[1746640507373,0.29072439,599.24,597.79,3.24056565]
[1746640507674,0.30689156,599.23,597.79,3.24056565]
[1746640508576,0.30689156,599.25,597.79,3.24056565]
[1746640508774,0.29072682,599.22,597.79,3.24056565]
[1746640511280,0.33374495,599.26,597.79,3.24056565]
[1746640511675,0.29073167,599.21,597.79,3.24056565]
[1746640514081,0.3069046,599.2,597.79,3.24056565]
[1746640514582,0.29073775,599.19,597.79,3.24056565]
[1746640515684,0.30694163,599.18,597.79,3.24056565]
[1746640517583,0.29077662,599.17,597.79,3.24056565]
[1746640517780,0.30694163,599.16,597.79,3.24056565]
[1746640518487,0.64074228,599.16,597.79,3.24056565]
[1746640518989,0.30694163,599.15,597.79,3.24056565]
[1746640520388,0.33380065,599.16,597.79,3.24056565]
[1746640520688,0.30705575,599.14,597.79,3.24056565]
[1746640520894,0.30705575,599.15,597.79,3.24056565]
[1746640527296,0.33380065,599.16,597.79,3.24056565]
[1746640529697,0.29076447,599.15,597.79,3.24056565]
[1746640530798,0.33381179,599.14,597.79,3.24056565]
[1746640532701,0.29075354,599.13,597.79,3.24056565]
[1746640535302,0.33381179,599.14,597.79,3.24056565]
[1746640535602,0.29078269,599.12,597.79,3.24056565]
[1746640535900,0.30698124,599.11,597.79,3.24056565]
[1746640538604,0.30698124,599.13,597.79,3.24056565]
[1746640538811,0.29078512,599.1,597.79,3.24056565]
[1746640539305,0.30698091,599.09,597.79,3.24056565]
[1746640539807,0.33384522,599.08,597.79,3.24056565]
[1746640540201,0.30698091,599.07,597.79,3.24056565]
[1746640541605,0.29078998,599.06,597.79,3.24056565]
[1746640541804,0.30698091,599.05,597.79,3.24056565]
[1746640543401,0.29078998,599.06,597.79,3.24056565]
[1746640543905,0.30697874,599.05,597.79,3.24056565]
[1746640544501,0.33386752,599.04,597.79,3.24056565]
[1746640544801,0.30697874,599.03,597.79,3.24056565]
[1746640545907,0.33387866,599.02,597.79,3.24056565]
[1746640547604,0.29077297,599.01,597.79,3.24056565]
[1746640550309,0.33387866,599.02,597.79,3.24056565]
[1746640550611,0.29076568,599.0,597.79,3.24056565]
[1746640553311,0.33387866,599.02,597.79,3.24056565]
[1746640553607,0.29076811,598.99,597.79,3.24056565]
[1746640558917,0.30692772,598.98,597.79,3.24056565]
[1746640560521,0.29076811,598.99,597.79,3.24056565]
[1746640560818,0.30693371,598.98,597.79,3.24056565]
[1746640562319,0.30693371,599.01,597.79,3.24056565]
[1746640563025,0.33388981,599.0,597.79,3.24056565]
[1746640580933,0.62461906,599.0,597.79,3.24056565]
[1746640583331,0.33388981,599.0,597.79,3.24056565]
[1746640584635,0.62461906,599.0,597.79,3.24056565]
[1746640588440,1.27462112,598.99,597.79,3.24056565]
[1746640588636,1.27462112,598.98,597.79,3.24056565]
[1746640588841,1.27462112,598.97,597.79,3.24056565]
[1746640589038,1.27462112,598.96,597.79,3.24056565]
[1746640589234,1.27462112,598.95,597.79,3.24056565]
[1746640589438,2.29848932,598.94,597.79,3.24056565]
[1746640589639,1.27462112,598.93,597.79,3.24056565]
[1746640589841,2.29848932,598.92,597.79,3.24056565]
[1746640590041,1.27462112,598.91,597.79,3.24056565]
[1746640590235,1.27462112,598.9,597.79,3.24056565]
[1746640590437,1.27462112,598.89,597.79,3.24056565]
[1746640590637,2.29848932,598.88,597.79,3.24056565]
[1746640590938,1.27462112,598.87,597.79,3.24056565]
[1746640591143,1.27462112,598.86,597.79,3.24056565]
[1746640591339,1.27462112,598.85,597.79,3.24056565]
[1746640591544,1.27462112,598.84,597.79,3.24056565]
[1746640591745,1.27462112,598.83,597.79,3.24056565]
[1746640591944,1.27462112,598.82,597.79,3.24056565]
[1746640592144,1.27462112,598.81,597.79,3.24056565]
[1746640592340,2.29848932,598.8,597.79,3.24056565]
[1746640592542,1.27462112,598.79,597.79,3.24056565]
[1746640592740,2.29848932,598.78,597.79,3.24056565]
[1746640592944,1.27462112,598.77,597.79,3.24056565]
[1746640593145,2.29848932,598.76,597.79,3.24056565]
[1746640593345,1.27462112,598.75,597.79,3.24056565]
[1746640593541,1.27462112,598.74,597.79,3.24056565]
[1746640593746,1.27403732,598.73,597.79,3.24056565]
[1746640594045,1.27403732,598.72,597.79,3.24056565]
[1746640594246,0.29080091,598.93,597.79,3.24056565]
[1746640594247,2.29790552,598.71,597.79,3.24056565]
[1746640594447,2.29790552,598.7,597.79,3.24056565]
[1746640594647,2.29790552,598.69,597.79,3.24056565]
[1746640594849,1.27403732,598.68,597.79,3.24056565]
[1746640595149,2.29801773,598.67,597.79,3.24056565]
[1746640595342,1.27414953,598.66,597.79,3.24056565]
[1746640595547,1.27414953,598.65,597.79,3.24056565]
[1746640595843,1.27414953,598.64,597.79,3.24056565]
[1746640596047,1.27414953,598.63,597.79,3.24056565]
[1746640596244,2.29801773,598.62,597.79,3.24056565]
[1746640596447,2.29801773,598.61,597.79,3.24056565]
[1746640596743,1.27457928,598.6,597.79,3.24056565]
[1746640596946,2.29844748,598.59,597.79,3.24056565]
[1746640597146,2.29844748,598.58,597.79,3.24056565]
[1746640597352,2.29844748,598.57,597.79,3.24056565]
[1746640597548,1.27457928,598.56,597.79,3.24056565]
[1746640597750,1.27457928,598.55,597.79,3.24056565]
[1746640597949,1.0238682,598.56,597.79,3.24056565]
[1746640598149,1.0238682,598.54,597.79,3.24056565]
[1746640598345,1.0238682,598.53,597.79,3.24056565]
[1746640598545,1.0238682,598.52,597.79,3.24056565]
[1746640598849,1.0238682,598.51,597.79,3.24056565]
[1746640599050,1.0238682,598.5,597.79,3.24056565]
[1746640599245,1.0238682,598.49,597.79,3.24056565]
[1746640599649,0.62470531,599.0,597.79,3.24056565]
[1746640599847,1.02488134,598.99,597.79,3.24056565]
[1746640600044,1.02488134,598.98,597.79,3.24056565]
[1746640600249,1.02488134,598.97,597.79,3.24056565]
[1746640600446,1.02488134,598.96,597.79,3.24056565]
[1746640600645,0.62470531,599.0,597.79,3.24056565]
[1746640600646,1.02488134,598.95,597.79,3.24056565]
[1746640600849,1.02488134,598.94,597.79,3.24056565]
[1746640601046,1.02488134,598.93,597.79,3.24056565]
[1746640601250,1.02488134,598.92,597.79,3.24056565]
[1746640601451,1.02488134,598.91,597.79,3.24056565]
[1746640601653,1.02488134,598.9,597.79,3.24056565]
[1746640601854,1.02488134,598.89,597.79,3.24056565]
[1746640602049,1.02488134,598.88,597.79,3.24056565]
[1746640602554,0.62470531,599.0,597.79,3.24056565]
[1746640604358,0.33388981,599.0,597.79,3.24056565]
[1746640604657,0.62465063,599.0,597.79,3.24056565]
[1746640604952,1.276416,598.99,597.79,3.24056565]
[1746640605158,1.02529423,598.87,597.79,3.24056565]
[1746640605358,1.276416,598.86,597.79,3.24056565]
[1746640605654,1.27772003,598.85,597.79,3.24056565]
[1746640605853,2.30301426,598.84,597.79,3.24056565]
[1746640606052,1.27772003,598.83,597.79,3.24056565]
[1746640606257,1.27772003,598.82,597.79,3.24056565]
[1746640606454,1.27772003,598.81,597.79,3.24056565]
[1746640606656,1.27772003,598.8,597.79,3.24056565]
[1746640606859,2.30301426,598.79,597.79,3.24056565]
[1746640607060,1.27772003,598.78,597.79,3.24056565]
[1746640607255,2.30301426,598.77,597.79,3.24056565]
[1746640607458,1.27772003,598.76,597.79,3.24056565]
[1746640607659,1.27772003,598.75,597.79,3.24056565]
[1746640607959,2.30301426,598.74,597.79,3.24056565]
[1746640608159,1.27772003,598.73,597.79,3.24056565]
[1746640608356,1.27772003,598.72,597.79,3.24056565]
[1746640608553,1.27772003,598.71,597.79,3.24056565]
[1746640608754,2.30301426,598.7,597.79,3.24056565]
[1746640608953,1.27772003,598.69,597.79,3.24056565]
[1746640609154,1.27772003,598.68,597.79,3.24056565]
[1746640609455,2.30301426,598.67,597.79,3.24056565]
[1746640609661,1.27772003,598.66,597.79,3.24056565]
[1746640609859,1.27772003,598.65,597.79,3.24056565]
[1746640610059,1.02529423,598.67,597.79,3.24056565]
[1746640610060,2.30301426,598.64,597.79,3.24056565]
[1746640610361,1.27772003,598.63,597.79,3.24056565]
[1746640610555,1.27772003,598.62,597.79,3.24056565]
[1746640610755,2.30301426,598.61,597.79,3.24056565]
[1746640610954,1.27772003,598.6,597.79,3.24056565]
[1746640611157,1.27772003,598.59,597.79,3.24056565]
[1746640611360,2.30301426,598.58,597.79,3.24056565]
[1746640611559,1.27772003,598.57,597.79,3.24056565]
[1746640611757,1.02529423,598.58,597.79,3.24056565]
[1746640611959,1.02529423,598.56,597.79,3.24056565]
[1746640612360,1.02529423,598.55,597.79,3.24056565]
[1746640612761,1.02529423,598.54,597.79,3.24056565]
[1746640613160,1.02529423,598.53,597.79,3.24056565]
[1746640613761,1.02529423,598.52,597.79,3.24056565]
[1746640614057,1.02529423,598.51,597.79,3.24056565]
[1746640614762,1.02529423,598.5,597.79,3.24056565]
[1746640615262,0.62470774,599.0,597.79,3.24056565]
[1746640615456,1.26968189,598.99,597.79,3.24056565]
[1746640615660,2.29238872,598.98,597.79,3.24056565]
[1746640615861,1.26968189,598.97,597.79,3.24056565]
[1746640616056,1.26968189,598.96,597.79,3.24056565]
[1746640616257,1.26968189,598.95,597.79,3.24056565]
[1746640616460,1.26968189,598.94,597.79,3.24056565]
[1746640616656,2.29238872,598.93,597.79,3.24056565]
[1746640616859,1.26968189,598.92,597.79,3.24056565]
[1746640617061,1.26968189,598.91,597.79,3.24056565]
[1746640617257,1.26968189,598.9,597.79,3.24056565]
[1746640617561,2.29238872,598.89,597.79,3.24056565]
[1746640617761,1.26968189,598.88,597.79,3.24056565]
[1746640617958,1.26968189,598.87,597.79,3.24056565]
[1746640618161,2.29238872,598.86,597.79,3.24056565]
[1746640618461,1.26968189,598.85,597.79,3.24056565]
[1746640618758,2.29238872,598.84,597.79,3.24056565]
[1746640618969,2.2945843,598.83,597.79,3.24056565]
[1746640619162,1.27187747,598.82,597.79,3.24056565]
[1746640619458,1.27187747,598.81,597.79,3.24056565]
[1746640619658,1.27187747,598.8,597.79,3.24056565]
[1746640619859,1.27187747,598.79,597.79,3.24056565]
[1746640620061,1.27187747,598.78,597.79,3.24056565]
[1746640620263,1.27187747,598.77,597.79,3.24056565]
[1746640620464,1.02270683,598.79,597.79,3.24056565]
[1746640621263,1.27177281,598.78,597.79,3.24056565]
[1746640621465,1.27148711,598.77,597.79,3.24056565]
[1746640621660,1.27148711,598.76,597.79,3.24056565]
[1746640621864,1.02270683,598.79,597.79,3.24056565]
[1746640622165,1.27107396,598.78,597.79,3.24056565]
[1746640622361,1.27107396,598.77,597.79,3.24056565]
[1746640622564,2.29378079,598.77,597.79,3.24056565]
[1746640622763,1.27107396,598.76,597.79,3.24056565]
[1746640622960,2.29378079,598.75,597.79,3.24056565]
[1746640623159,1.27107396,598.74,597.79,3.24056565]
[1746640623360,1.27107396,598.73,597.79,3.24056565]
[1746640623562,2.29724616,598.72,597.79,3.24056565]
[1746640623759,1.27348962,598.71,597.79,3.24056565]
[1746640623966,1.27348962,598.7,597.79,3.24056565]
[1746640624159,1.02375654,598.72,597.79,3.24056565]
[1746640624160,2.29724616,598.69,597.79,3.24056565]
[1746640624365,1.27348962,598.68,597.79,3.24056565]
[1746640624564,1.27348962,598.67,597.79,3.24056565]
[1746640624764,2.29724616,598.66,597.79,3.24056565]
[1746640625062,1.27348962,598.65,597.79,3.24056565]
[1746640625264,2.29652618,598.64,597.79,3.24056565]
[1746640625467,1.27279331,598.63,597.79,3.24056565]
[1746640625667,1.27279331,598.62,597.79,3.24056565]
[1746640625969,2.29650812,598.61,597.79,3.24056565]
[1746640626265,1.27275158,598.6,597.79,3.24056565]
[1746640626461,2.29650812,598.59,597.79,3.24056565]
[1746640626661,1.27275158,598.58,597.79,3.24056565]
[1746640626866,1.27275158,598.57,597.79,3.24056565]
[1746640627066,1.27275158,598.56,597.79,3.24056565]
[1746640627268,2.29667034,598.55,597.79,3.24056565]
[1746640627465,1.2729138,598.54,597.79,3.24056565]
[1746640627666,2.29667034,598.53,597.79,3.24056565]
[1746640627865,1.2729138,598.52,597.79,3.24056565]
[1746640628064,1.2729138,598.51,597.79,3.24056565]
[1746640628263,1.02375654,598.5,597.79,3.24056565]
[1746640628867,1.02375654,598.49,597.79,3.24056565]
[1746640629368,1.02375654,598.48,597.79,3.24056565]
[1746640629762,1.02375654,598.47,597.79,3.24056565]
[1746640630162,1.02375654,598.46,597.79,3.24056565]
[1746640630761,1.02375654,598.45,597.79,3.24056565]
[1746640631767,1.02375654,598.44,597.79,3.24056565]
[1746640632563,0.29085438,598.89,597.79,3.24056565]
[1746640632767,1.26938022,598.88,597.79,3.24056565]
[1746640632963,1.26938022,598.87,597.79,3.24056565]
[1746640633268,1.26938022,598.86,597.79,3.24056565]
[1746640633468,1.26938022,598.85,597.79,3.24056565]
[1746640633665,1.02131128,598.86,597.79,3.24056565]
[1746640633666,2.2906915,598.84,597.79,3.24056565]
[1746640633867,1.26938022,598.83,597.79,3.24056565]
[1746640634161,1.26938022,598.82,597.79,3.24056565]
[1746640634366,2.2906915,598.81,597.79,3.24056565]
[1746640634567,2.2906915,598.8,597.79,3.24056565]
[1746640634770,1.26938022,598.79,597.79,3.24056565]
[1746640634963,1.26938022,598.78,597.79,3.24056565]
[1746640635165,2.2906915,598.77,597.79,3.24056565]
[1746640635363,1.26938022,598.76,597.79,3.24056565]
[1746640635566,2.2906915,598.75,597.79,3.24056565]
[1746640635770,1.26938022,598.74,597.79,3.24056565]
[1746640635969,1.26938022,598.73,597.79,3.24056565]
[1746640636164,2.2906915,598.72,597.79,3.24056565]
[1746640636363,1.26938022,598.71,597.79,3.24056565]
[1746640636568,2.2906915,598.7,597.79,3.24056565]
[1746640636867,1.2691183,598.69,597.79,3.24056565]
[1746640637065,1.2691183,598.68,597.79,3.24056565]
[1746640637268,1.26934215,598.67,597.79,3.24056565]
[1746640637466,1.26934215,598.66,597.79,3.24056565]
[1746640637667,1.26934215,598.65,597.79,3.24056565]
[1746640637870,2.29065343,598.64,597.79,3.24056565]
[1746640638067,1.26934215,598.63,597.79,3.24056565]
[1746640638272,1.26934215,598.62,597.79,3.24056565]
[1746640638466,1.26934215,598.61,597.79,3.24056565]
[1746640638667,1.26934215,598.6,597.79,3.24056565]
[1746640638867,2.29065343,598.59,597.79,3.24056565]
[1746640639172,1.02131128,598.58,597.79,3.24056565]
[1746640639374,1.02131128,598.57,597.79,3.24056565]
[1746640639768,1.02131128,598.56,597.79,3.24056565]
[1746640640369,0.33388981,599.0,597.79,3.24056565]
[1746640640572,1.26880087,598.99,597.79,3.24056565]
[1746640640773,2.29016516,598.98,597.79,3.24056565]
[1746640640967,1.26880087,598.97,597.79,3.24056565]
[1746640641167,2.29016516,598.96,597.79,3.24056565]
[1746640641470,1.26880087,598.95,597.79,3.24056565]
[1746640641672,1.26880087,598.94,597.79,3.24056565]
[1746640641968,2.29016516,598.93,597.79,3.24056565]
[1746640642172,1.26880087,598.92,597.79,3.24056565]
[1746640642368,1.26880087,598.91,597.79,3.24056565]
[1746640642570,2.29016516,598.9,597.79,3.24056565]
[1746640642770,1.26880087,598.89,597.79,3.24056565]
[1746640642972,2.29016516,598.88,597.79,3.24056565]
[1746640643168,1.26880087,598.87,597.79,3.24056565]
[1746640643369,1.26880087,598.86,597.79,3.24056565]
[1746640643568,2.29016516,598.85,597.79,3.24056565]
[1746640643767,1.26880087,598.84,597.79,3.24056565]
[1746640644072,2.29016516,598.83,597.79,3.24056565]
[1746640644272,1.26880087,598.82,597.79,3.24056565]
[1746640644572,2.29016516,598.81,597.79,3.24056565]
[1746640644774,1.26880087,598.8,597.79,3.24056565]
[1746640644973,2.29016516,598.79,597.79,3.24056565]
[1746640645269,1.26880087,598.78,597.79,3.24056565]
[1746640645469,2.29016516,598.77,597.79,3.24056565]
[1746640645671,1.26880087,598.76,597.79,3.24056565]
[1746640645873,2.29016516,598.75,597.79,3.24056565]
[1746640646075,1.27009771,598.74,597.79,3.24056565]
[1746640646273,2.291462,598.73,597.79,3.24056565]
[1746640646473,1.27009771,598.72,597.79,3.24056565]
[1746640646671,1.02136429,598.71,597.79,3.24056565]
[1746640647377,2.2907887,598.7,597.79,3.24056565]
[1746640647576,2.2907887,598.69,597.79,3.24056565]
[1746640647773,1.02136429,598.69,597.79,3.24056565]
[1746640648178,1.02136429,598.68,597.79,3.24056565]
[1746640648679,1.02136429,598.67,597.79,3.24056565]
[1746640649079,1.02136429,598.66,597.79,3.24056565]
[1746640649879,0.33388981,599.0,597.79,3.24056565]
[1746640650179,1.2681063,598.99,597.79,3.24056565]
[1746640650378,1.2681063,598.98,597.79,3.24056565]
[1746640650577,1.2681063,598.97,597.79,3.24056565]
[1746640650778,1.2681063,598.96,597.79,3.24056565]
[1746640650975,1.2681063,598.95,597.79,3.24056565]
[1746640651178,1.2681063,598.94,597.79,3.24056565]
[1746640651379,1.2681063,598.93,597.79,3.24056565]
[1746640651574,1.2681063,598.92,597.79,3.24056565]
[1746640651776,1.2681063,598.91,597.79,3.24056565]
[1746640651974,2.28881762,598.9,597.79,3.24056565]
[1746640652175,1.2681063,598.89,597.79,3.24056565]
[1746640652376,1.2681063,598.88,597.79,3.24056565]
[1746640652575,2.28881762,598.87,597.79,3.24056565]
[1746640652782,2.28881762,598.86,597.79,3.24056565]
[1746640652980,1.2681063,598.85,597.79,3.24056565]
[1746640653181,1.2681063,598.84,597.79,3.24056565]
[1746640653381,2.28881762,598.83,597.79,3.24056565]
[1746640653680,1.2681063,598.82,597.79,3.24056565]
[1746640653881,1.2681063,598.81,597.79,3.24056565]
[1746640654079,1.2681063,598.8,597.79,3.24056565]
[1746640654781,1.02071132,598.79,597.79,3.24056565]
[1746640655584,1.02071132,598.78,597.79,3.24056565]
[1746640656080,1.02071132,598.77,597.79,3.24056565]
[1746640656587,1.02071132,598.76,597.79,3.24056565]
[1746640656884,1.02071132,598.75,597.79,3.24056565]
[1746640657588,0.33388981,599.0,597.79,3.24056565]
[1746640657786,1.26540545,598.99,597.79,3.24056565]
[1746640657987,1.26540545,598.98,597.79,3.24056565]
[1746640658187,1.26540545,598.97,597.79,3.24056565]
[1746640658389,1.26540545,598.96,597.79,3.24056565]
[1746640658588,1.26540545,598.95,597.79,3.24056565]
[1746640658889,2.28449635,598.94,597.79,3.24056565]
[1746640659084,1.26506809,598.93,597.79,3.24056565]
[1746640659287,1.26506809,598.92,597.79,3.24056565]
[1746640659488,1.26506809,598.91,597.79,3.24056565]
[1746640659688,1.26506809,598.9,597.79,3.24056565]
[1746640659887,1.26506809,598.89,597.79,3.24056565]
[1746640660190,2.28415899,598.88,597.79,3.24056565]
[1746640660383,2.28415899,598.87,597.79,3.24056565]
[1746640660588,2.28415899,598.86,597.79,3.24056565]
[1746640660787,1.26506809,598.85,597.79,3.24056565]
[1746640661089,1.0190909,598.84,597.79,3.24056565]
[1746640661286,2.28415899,598.83,597.79,3.24056565]
[1746640661590,1.01872098,598.82,597.79,3.24056565]
[1746640661782,1.01872098,598.81,597.79,3.24056565]
[1746640662387,1.01872098,598.8,597.79,3.24056565]
[1746640663289,1.01872098,598.79,597.79,3.24056565]
[1746640663589,1.01872098,598.78,597.79,3.24056565]
[1746640664487,1.01872098,598.77,597.79,3.24056565]
[1746640664686,1.26514627,598.76,597.79,3.24056565]
[1746640664885,1.01872098,598.75,597.79,3.24056565]
[1746640665290,1.26529461,598.74,597.79,3.24056565]
[1746640665490,1.01872098,598.73,597.79,3.24056565]
[1746640666292,1.01872098,598.72,597.79,3.24056565]
[1746640666686,1.01872098,598.71,597.79,3.24056565]
[1746640667091,1.01872098,598.7,597.79,3.24056565]
[1746640668086,1.01872098,598.99,597.79,3.24056565]
[1746640668292,1.26620198,598.98,597.79,3.24056565]
[1746640668593,2.28492296,598.97,597.79,3.24056565]
[1746640668792,2.28492296,598.96,597.79,3.24056565]
[1746640668993,1.26620198,598.95,597.79,3.24056565]
[1746640669288,1.26620198,598.94,597.79,3.24056565]
[1746640669488,1.26620198,598.93,597.79,3.24056565]
[1746640669692,1.26620198,598.92,597.79,3.24056565]
[1746640669888,1.26620198,598.91,597.79,3.24056565]
[1746640670395,1.01872098,598.9,597.79,3.24056565]
[1746640670590,1.26620198,598.89,597.79,3.24056565]
[1746640670790,1.01872098,598.88,597.79,3.24056565]
[1746640670993,1.26620198,598.87,597.79,3.24056565]
[1746640671294,1.01872098,598.86,597.79,3.24056565]
[1746640671494,2.28492296,598.85,597.79,3.24056565]
[1746640671694,1.01872098,598.85,597.79,3.24056565]
[1746640671896,1.26660538,598.84,597.79,3.24056565]
[1746640672193,1.01872098,598.83,597.79,3.24056565]
[1746640672395,1.26660538,598.82,597.79,3.24056565]
[1746640672596,1.01872098,598.81,597.79,3.24056565]
[1746640673290,1.01872098,598.8,597.79,3.24056565]
[1746640673695,1.01872098,598.79,597.79,3.24056565]
[1746640674297,1.01872098,598.99,597.79,3.24056565]
[1746640674596,2.28970564,598.98,597.79,3.24056565]
[1746640674893,1.27098466,598.97,597.79,3.24056565]
[1746640675092,2.28970564,598.96,597.79,3.24056565]
[1746640675291,1.27098466,598.95,597.79,3.24056565]
[1746640675695,1.01872098,598.94,597.79,3.24056565]
[1746640675895,1.27098466,598.93,597.79,3.24056565]
[1746640676191,1.01872098,598.92,597.79,3.24056565]
[1746640676396,1.27098466,598.91,597.79,3.24056565]
[1746640676696,2.28970564,598.9,597.79,3.24056565]
[1746640676893,1.27098466,598.89,597.79,3.24056565]
[1746640677089,2.28970564,598.88,597.79,3.24056565]
[1746640677290,1.27098466,598.87,597.79,3.24056565]
[1746640677494,1.27098466,598.86,597.79,3.24056565]
[1746640677692,1.27098466,598.85,597.79,3.24056565]
[1746640677895,2.28970564,598.84,597.79,3.24056565]
[1746640678094,1.27098466,598.83,597.79,3.24056565]
[1746640678297,2.28970564,598.82,597.79,3.24056565]
[1746640678497,1.27098466,598.81,597.79,3.24056565]
[1746640678691,1.27098466,598.8,597.79,3.24056565]
[1746640678993,1.27098466,598.79,597.79,3.24056565]
[1746640679195,2.28970564,598.78,597.79,3.24056565]
[1746640679394,1.27098466,598.77,597.79,3.24056565]
[1746640679697,1.01872098,598.76,597.79,3.24056565]
[1746640680392,1.01872098,598.75,597.79,3.24056565]
[1746640681097,1.01872098,598.74,597.79,3.24056565]
[1746640681701,1.01872098,598.73,597.79,3.24056565]
[1746640682302,1.01872098,598.72,597.79,3.24056565]
[1746640683395,1.01872098,598.71,597.79,3.24056565]
[1746640683801,1.01872098,598.7,597.79,3.24056565]
[1746640684301,1.01872098,598.69,597.79,3.24056565]
[1746640685096,1.01872098,598.68,597.79,3.24056565]
[1746640685402,1.01872098,598.67,597.79,3.24056565]
[1746640685995,0.33388981,599.0,597.79,3.24056565]
[1746640685996,1.01872098,598.66,597.79,3.24056565]
[1746640686301,0.33388981,599.0,597.79,3.24056565]
[1746640686601,2.29606669,598.99,597.79,3.24056565]
[1746640686802,2.29606669,598.98,597.79,3.24056565]
[1746640687102,1.2747496,598.97,597.79,3.24056565]
[1746640687297,1.2747496,598.96,597.79,3.24056565]
[1746640687604,2.29606669,598.95,597.79,3.24056565]
[1746640687803,1.2747496,598.94,597.79,3.24056565]
[1746640688000,2.29606669,598.93,597.79,3.24056565]
[1746640688200,1.2747496,598.92,597.79,3.24056565]
[1746640688404,2.29606669,598.91,597.79,3.24056565]
[1746640688598,1.2747496,598.9,597.79,3.24056565]
[1746640688805,1.2747496,598.89,597.79,3.24056565]
[1746640689003,1.2747496,598.88,597.79,3.24056565]
[1746640689304,2.29606669,598.87,597.79,3.24056565]
[1746640689603,1.2747496,598.86,597.79,3.24056565]
[1746640689799,1.2747496,598.85,597.79,3.24056565]
[1746640690004,1.27431258,598.84,597.79,3.24056565]
[1746640690211,1.27431258,598.83,597.79,3.24056565]
[1746640690508,1.27431258,598.82,597.79,3.24056565]
[1746640690709,1.27431258,598.81,597.79,3.24056565]
[1746640690908,2.29562967,598.8,597.79,3.24056565]
[1746640691104,1.27431258,598.79,597.79,3.24056565]
[1746640691303,2.29562967,598.78,597.79,3.24056565]
[1746640691508,1.27431258,598.77,597.79,3.24056565]
[1746640691709,1.02131709,598.76,597.79,3.24056565]
[1746640692409,1.02131709,598.75,597.79,3.24056565]
[1746640692809,1.02131709,598.74,597.79,3.24056565]
[1746640693109,1.02131709,598.73,597.79,3.24056565]
[1746640693411,1.02131709,598.72,597.79,3.24056565]
[1746640693909,1.02131709,598.71,597.79,3.24056565]
[1746640694211,1.02131709,598.7,597.79,3.24056565]
[1746640695110,1.02131709,598.69,597.79,3.24056565]
[1746640695611,1.02131709,598.68,597.79,3.24056565]
[1746640695811,0.33388981,599.0,597.79,3.24056565]
[1746640695812,1.02131709,598.67,597.79,3.24056565]
[1746640696308,0.33388981,599.0,597.79,3.24056565]
[1746640696506,1.27388279,598.99,597.79,3.24056565]
[1746640696708,1.27388279,598.98,597.79,3.24056565]
[1746640696908,1.27388279,598.97,597.79,3.24056565]
[1746640697113,2.29554466,598.96,597.79,3.24056565]
[1746640697310,1.27369697,598.95,597.79,3.24056565]
[1746640697516,1.27369697,598.94,597.79,3.24056565]
[1746640697816,2.29535884,598.93,597.79,3.24056565]
[1746640698012,1.27369697,598.92,597.79,3.24056565]
[1746640698214,1.27369697,598.91,597.79,3.24056565]
[1746640698410,2.29535884,598.9,597.79,3.24056565]
[1746640698613,1.27369697,598.89,597.79,3.24056565]
[1746640698811,1.27369697,598.88,597.79,3.24056565]
[1746640699016,2.29535884,598.87,597.79,3.24056565]
[1746640699211,1.27369697,598.86,597.79,3.24056565]
[1746640699416,1.27369697,598.85,597.79,3.24056565]
[1746640699714,1.27369697,598.84,597.79,3.24056565]
[1746640699913,1.27369697,598.83,597.79,3.24056565]
[1746640700210,1.27369697,598.82,597.79,3.24056565]
[1746640700413,1.27369697,598.81,597.79,3.24056565]
[1746640700714,2.29535884,598.8,597.79,3.24056565]
[1746640700914,2.29535884,598.79,597.79,3.24056565]
[1746640701117,1.27477851,598.78,597.79,3.24056565]